bitfinex-derivatives/quotes_ETHF0:USTF0_20241104
["timestamp","ask_amount","ask_price","bid_price","bid_amount"]
[1730715934948,0.6805,2471.9,2471.8,0.40486]
[1730715935155,41.4805,2471.9,2471.7,1.45910787]
[1730715935354,41.88536,2471.9,2471.8,0.40486]
[1730715938151,41.4805,2471.9,2471.6,1.45910787]
[1730715938453,0.40488,2471.8,2471.7,0.40487]
[1730715938655,0.6805,2471.9,2471.8,0.40486]
[1730715938847,1.08535,2471.9,2471.8,0.40486]
[1730715939053,41.4805,2471.9,2471.8,0.40486]
[1730715939253,41.4805,2471.9,2471.8,4.45046]
[1730715939450,41.4805,2471.9,2471.8,0.40486]
[1730715939653,41.4805,2471.9,2471.8,4.45046]
[1730715940477,0.4048,2472.3,2472.2,0.4048]
[1730715940656,2.3702,2472.3,2472.2,0.4048]
[1730715940955,0.4048,2472.2,2472.1,1.86390787]
[1730715941561,43.17019,2472.3,2472.2,0.4048]
[1730715941860,42.7654,2472.3,2472.2,1.86390787]
[1730715942051,43.17018,2472.3,2472.2,1.86390787]
[1730715942255,42.7654,2472.3,2472.2,1.86390787]
[1730715943058,43.17018,2472.3,2472.2,1.86390787]
[1730715943761,40.8,2472.3,2472.2,5.90870787]
[1730715944359,40.8,2472.3,2472.2,7.36781574]
[1730715944554,40.8,2472.3,2472.2,5.90870787]
[1730715945161,40.8,2472.3,2472.2,8.06721574]
[1730715945365,40.8,2472.3,2472.2,6.60810787]
[1730715945662,40.8,2472.3,2472.2,2.56330787]
[1730715946257,40.8,2472.3,2472.2,1.86390787]
[1730715946659,41.20478,2472.3,2472.2,1.86390787]
[1730715947763,0.4048,2472.2,2472.1,1.45910787]
[1730715947974,0.40483,2472.0,2471.9,1.86394787]
[1730715948168,0.40483,2472.0,2471.9,1.45910787]
[1730715948459,0.40483,2472.0,2471.9,1.86395787]
[1730715948665,2.43003,2472.1,2472.0,0.40483]
[1730715948851,0.40483,2472.0,2471.9,1.86394787]
[1730715949354,0.40483,2472.0,2471.9,0.40484]
[1730715949664,2.0252,2472.1,2471.8,3.15947424]
[1730715949862,0.40485,2471.9,2471.8,3.15947424]
[1730715950062,0.40488,2471.7,2471.6,0.40488]
[1730715950465,4.2199,2472.0,2471.5,6.36727424]
[1730715950666,0.7022,2471.6,2471.5,6.77218424]
[1730715951263,41.5022,2471.6,2471.5,6.77218424]
[1730715952362,41.5022,2471.6,2471.5,7.35748493]
[1730715953564,41.5022,2471.6,2471.5,8.01288493]
[1730715954770,1.3331,2472.1,2471.5,12.99627522]
[1730715954968,0.40484,2472.0,2471.9,0.40483]
[1730715955168,0.40484,2472.0,2471.8,3.15947424]
[1730715955169,0.40485,2471.9,2471.8,0.40485]
[1730715955477,40.8,2471.9,2471.8,0.40486]
[1730715956171,41.4693,2471.9,2471.8,0.40486]
[1730715956371,41.4693,2471.9,2471.6,3.15947424]
[1730715956573,0.40487,2471.8,2471.7,0.40486]
[1730715957468,41.87415,2471.9,2471.8,0.40486]
[1730715957966,41.4693,2471.9,2471.6,3.15947424]
[1730715958173,0.40488,2471.8,2471.7,0.40487]
[1730715960277,41.87416,2471.9,2471.8,0.40486]
[1730715960470,41.4693,2471.9,2471.6,3.15947424]
[1730715960667,0.40487,2471.8,2471.7,0.40487]
[1730715960867,0.40486,2471.8,2471.7,0.40488]
[1730715961976,41.87415,2471.9,2471.8,0.40486]
[1730715962274,0.40487,2471.8,2471.7,0.40487]
[1730715962472,41.87415,2471.9,2471.6,3.15947424]
[1730715962673,41.4693,2471.9,2471.8,0.40486]
[1730715964076,41.87415,2471.9,2471.8,0.40486]
[1730715964776,0.40488,2471.8,2471.7,0.40487]
[1730715965375,41.87416,2471.9,2471.8,0.40486]
[1730715965570,41.87416,2471.9,2471.7,0.40487]
[1730715965571,0.40488,2471.8,2471.7,0.40487]
[1730715965768,45.68922,2471.9,2471.5,3.2078]
[1730715965967,45.68922,2471.9,2471.2,0.40495]
[1730715965968,0.40496,2471.3,2471.2,0.40495]
[1730715966168,3.2078,2471.3,2470.8,3.78397424]
[1730715966373,0.40501,2471.0,2470.9,0.99128338]
[1730715966568,0.40503,2470.8,2470.7,0.40503]
[1730715966767,41.20503,2470.8,2470.7,0.99138623]
[1730715966971,40.8,2470.8,2470.6,6.97857424]
[1730715967177,40.8,2470.8,2470.6,0.40505]
[1730715967178,0.40504,2470.7,2470.6,0.40505]
[1730715967379,1.07014,2470.7,2470.6,0.40505]
[1730715967574,0.6651,2470.7,2470.4,0.6245]
[1730715967873,0.6651,2470.7,2470.6,0.40506]
[1730715968087,0.6651,2470.7,2470.6,3.56453424]
[1730715968470,0.6651,2470.7,2470.6,3.15947424]
[1730715968670,0.6651,2470.7,2470.4,0.40508]
[1730715968671,0.40507,2470.6,2470.4,0.40508]
[1730715968880,0.40507,2470.6,2470.2,3.8385]
[1730715968881,0.4051,2470.4,2470.2,4.24361]
[1730715969177,0.6061,2470.3,2470.2,0.40511]
[1730715969572,0.6061,2470.3,2470.2,0.40512]
[1730715969972,3.2078,2470.5,2470.4,0.40509]
[1730715969973,0.40508,2470.5,2470.4,0.40509]
[1730715970176,1.01118,2470.5,2470.3,0.4051]
[1730715970370,0.4051,2470.4,2470.2,0.40511]
[1730715970578,0.4051,2470.4,2470.3,0.40511]
[1730715970779,0.6061,2470.5,2470.1,3.15947424]
[1730715970978,0.40509,2470.4,2470.1,3.15947424]
[1730715971176,0.40509,2470.4,2470.3,0.40511]
[1730715971582,0.40509,2470.4,2470.2,0.40511]
[1730715971782,1.01118,2470.5,2470.1,3.15947424]
[1730715971981,0.6061,2470.5,2470.4,0.40509]
[1730715972173,1.01118,2470.5,2470.3,0.4051]
[1730715972378,0.6061,2470.5,2470.1,3.15947424]
[1730715972579,1.01119,2470.5,2470.3,0.4051]
[1730715972978,1.01119,2470.5,2470.4,0.40509]
[1730715973180,0.6061,2470.5,2470.4,0.40509]
[1730715974990,0.6061,2470.5,2470.3,3.15947424]
[1730715974991,1.01118,2470.5,2470.3,3.15947424]
[1730715975486,4.048,2470.4,2470.0,0.40515]
[1730715975687,4.048,2470.4,2469.9,3.2078]
[1730715975688,0.40516,2470.0,2469.9,3.61297]
[1730715975889,1.64767,2470.4,2469.9,3.2078]
[1730715976184,40.8,2470.8,2470.3,3.15947424]
[1730715976387,40.8,2470.8,2470.4,1.2789]
[1730715976592,0.40505,2470.7,2470.6,0.40505]
[1730715976886,40.8,2470.8,2470.6,0.40505]
[1730715977077,41.20503,2470.8,2470.7,0.40504]
[1730715977488,40.8,2470.8,2470.7,0.40504]
[1730715978194,3.2078,2471.0,2470.9,0.40501]
[1730715978583,0.6203,2471.3,2470.9,4.45221]
[1730715978884,40.8,2471.2,2471.1,0.40498]
[1730715979396,0.6715,2471.4,2471.3,0.40494]
[1730715979696,0.40489,2471.7,2471.3,3.56441424]
[1730715979884,0.40489,2471.7,2471.6,0.40489]
[1730715980594,41.20489,2471.7,2471.6,0.40489]
[1730715981194,0.4049,2471.6,2471.5,0.40489]
[1730715981788,41.20489,2471.7,2471.6,0.40489]
[1730715982890,44.41269,2471.7,2471.6,0.40489]
[1730715983293,44.0078,2471.7,2471.6,0.40489]
[1730715983495,44.41268,2471.7,2471.6,0.40489]
[1730715985993,44.0078,2471.7,2471.6,0.40489]
[1730715986499,40.8,2471.7,2471.6,0.40489]
[1730715989197,0.4049,2471.6,2471.5,0.40491]
[1730715989391,40.8,2471.7,2471.4,3.2078]
[1730715989593,0.40491,2471.6,2471.5,0.40491]
[1730715989999,40.8,2471.7,2471.4,3.2078]
[1730715990205,40.8,2471.7,2471.4,3.61272]
[1730715990206,0.40491,2471.5,2471.4,3.61272]
[1730715990698,41.4242,2471.7,2471.4,3.61272]
[1730715990897,0.40491,2471.5,2471.4,3.61272]
[1730715991104,41.4242,2471.7,2471.1,3.83587424]
[1730715991302,41.4242,2471.7,2471.2,0.40495]
[1730715991303,0.40495,2471.3,2471.2,0.40495]
[1730715991498,0.648,2471.4,2471.1,3.15947424]
[1730715991800,0.6143,2471.3,2471.2,0.40496]
[1730715992194,1.01924,2471.3,2471.2,0.40496]
[1730715992410,0.6143,2471.3,2471.2,0.40496]
[1730715993705,1.01924,2471.3,2471.2,0.40496]
[1730715994505,0.6143,2471.3,2471.2,0.40496]
[1730715994702,1.01924,2471.3,2471.2,0.40496]
[1730715995593,0.40496,2471.2,2471.1,3.56443424]
[1730715995793,1.01926,2471.3,2471.2,0.40496]
[1730715996004,0.40497,2471.2,2471.1,0.40497]
[1730715996205,1.01926,2471.3,2471.2,0.40496]
[1730715996601,0.40497,2471.2,2471.1,0.40497]
[1730715996904,0.6143,2471.3,2471.2,0.40496]
[1730715996905,1.01925,2471.3,2471.2,0.40496]
[1730715997297,0.6143,2471.3,2470.9,4.22033]
[1730715997496,1.01926,2471.3,2470.9,4.22033]
[1730715997704,0.6143,2471.3,2470.9,4.22033]
[1730715997910,1.01925,2471.3,2471.2,0.40496]
[1730715998999,0.648,2471.4,2471.1,3.15947424]
[1730715999204,41.8114496,2471.7,2471.3,3.56441424]
[1730715999505,41.8114496,2471.7,2471.6,3.56436424]
[1730715999506,1.0114496,2471.7,2471.6,3.56436424]
[1730716003110,41.8114496,2471.7,2471.6,3.56436424]
[1730716004011,41.8114496,2471.7,2471.6,0.40489]
[1730716004207,42.4862496,2471.7,2471.6,0.40489]
[1730716005012,42.8911296,2471.7,2471.6,0.40489]
[1730716005203,0.40492,2471.5,2471.4,0.40492]
[1730716005403,42.4862496,2471.7,2471.5,0.40491]
[1730716005404,1.03321,2471.6,2471.5,0.40491]
[1730716005600,0.6283,2471.6,2471.2,0.6774]
[1730716005800,0.6713,2471.5,2471.2,1.08234]
[1730716006001,0.40495,2471.3,2471.1,3.15947424]
[1730716006206,0.40496,2471.2,2471.1,0.40497]
[1730716006404,0.40498,2471.1,2471.0,0.40498]
[1730716006617,1.07367,2471.2,2471.1,0.40498]
[1730716006911,0.6687,2471.2,2471.1,0.40498]
[1730716007711,1.07366,2471.2,2471.1,0.40498]
[1730716008110,0.6687,2471.2,2471.1,0.40498]
[1730716008309,1.07366,2471.2,2471.1,0.40498]
[1730716008718,0.6687,2471.2,2471.1,0.40498]
[1730716009014,0.405,2471.0,2470.9,0.40501]
[1730716009516,0.6428,2471.1,2470.8,3.2078]
[1730716009722,1.0336,2471.0,2470.9,0.40501]
[1730716009910,0.6286,2471.0,2470.9,0.40501]
[1730716012011,1.07367,2471.2,2471.1,0.40498]
[1730716012209,0.40498,2471.1,2471.0,0.40499]
[1730716012614,3.2078,2471.5,2471.0,4.0472]
[1730716012913,0.4049,2471.6,2471.2,1.01239]
[1730716013110,0.40493,2471.4,2471.3,0.40494]
[1730716013517,5.2314596,2471.7,2471.1,3.8306]
[1730716013705,0.40492,2471.5,2471.4,0.40492]
[1730716014919,41.20492,2471.5,2471.4,0.40492]
[1730716021217,41.20492,2471.5,2471.1,1.63523]
[1730716021218,41.20492,2471.5,2471.1,0.6228]
[1730716021522,0.40496,2471.3,2471.2,0.59469848]
[1730716021717,1.01241,2471.2,2470.5,4.25576594]
[1730716021914,0.40506,2470.7,2470.6,0.59498985]
[1730716022111,0.40509,2470.5,2470.4,0.40508]
[1730716022319,0.40509,2470.5,2470.4,0.40509]
[1730716022320,41.20507,2470.5,2470.4,0.40509]
[1730716022526,40.8,2470.5,2470.2,0.626]
[1730716022717,0.40511,2470.4,2470.3,0.59525212]
[1730716022916,0.40511,2470.4,2470.3,1.00036212]
[1730716023115,0.40511,2470.4,2470.3,0.40511]
[1730716023315,0.40511,2470.4,2470.3,1.00041577]
[1730716023523,0.40511,2470.4,2470.3,0.40511]
[1730716023827,41.4262,2470.5,2470.2,0.40511]
[1730716023828,0.40511,2470.3,2470.2,0.40511]
[1730716024121,41.4262,2470.5,2469.9,3.875]
[1730716024326,0.40517,2470.0,2469.9,0.40517]
[1730716024624,0.40517,2470.0,2469.6,3.2078]
[1730716024625,0.40517,2469.9,2469.8,0.40518]
[1730716024823,0.40516,2470.0,2469.8,0.5950943]
[1730716025028,4.22061,2470.3,2469.6,3.2078]
[1730716025321,4.22061,2470.3,2469.7,0.59512366]
[1730716025623,1.41794,2470.2,2469.7,0.40519]
[1730716025816,3.2078,2470.3,2469.6,4.22086]
[1730716026015,0.6492,2470.1,2470.0,0.40515]
[1730716026220,0.40516,2470.0,2469.9,0.40517]
[1730716026617,0.6492,2470.1,2469.9,0.40517]
[1730716026923,0.6492,2470.1,2470.0,0.40516]
[1730716027118,1.05436,2470.1,2469.7,3.15947424]
[1730716027313,1.05436,2470.1,2470.0,0.40516]
[1730716028619,0.6492,2470.1,2470.0,0.40516]
[1730716028918,3.2078,2470.3,2470.1,0.40514]
[1730716029114,0.40512,2470.2,2470.1,0.40514]
[1730716029516,3.61292,2470.3,2470.2,0.40512]
[1730716029821,3.2078,2470.3,2469.9,1.01293]
[1730716030128,3.61292,2470.3,2470.2,0.40511]
[1730716030424,0.40512,2470.3,2470.2,0.40511]
[1730716031722,3.8463,2470.4,2469.9,1.01293]
[1730716032025,0.40512,2470.3,2470.2,0.40511]
[1730716033114,0.40518,2470.0,2469.9,0.40516]
[1730716033727,4.22058,2470.3,2469.7,3.2078]
[1730716033928,0.40515,2470.1,2470.0,0.40514]
[1730716034515,0.40516,2470.1,2470.0,0.40515]
[1730716034925,3.2078,2470.3,2469.6,1.01306]
[1730716035123,0.40518,2470.0,2469.9,0.40516]
[1730716035720,0.40516,2470.1,2470.0,0.40515]
[1730716036726,4.22058,2470.3,2469.6,1.01306]
[1730716036927,0.40518,2470.0,2469.9,0.40516]
[1730716038721,0.4052,2469.8,2469.7,0.4052]
[1730716038932,0.40519,2469.9,2469.8,0.40519]
[1730716039831,1.01298,2469.8,2469.4,3.875]
[1730716040021,0.40524,2469.5,2469.4,4.28024]
[1730716040218,0.40524,2469.5,2469.4,3.875]
[1730716040420,41.20524,2469.5,2469.4,4.28026]
[1730716040827,40.8,2469.5,2469.4,4.28026]
[1730716043029,40.8,2469.5,2469.4,8.32986]
[1730716043925,40.8,2469.5,2469.4,4.28026]
[1730716044434,41.20524,2469.5,2469.4,4.28026]
[1730716044834,41.20524,2469.5,2469.4,3.875]
[1730716045033,41.20524,2469.5,2469.4,4.28026]
[1730716045233,41.20524,2469.5,2469.4,3.875]
[1730716045433,41.20524,2469.5,2469.4,4.28026]
[1730716046230,41.20524,2469.5,2469.4,3.2078]
[1730716046429,0.40528,2469.3,2469.2,0.40527]
[1730716046630,40.8,2469.5,2469.1,0.6447]
[1730716046935,0.6435,2469.4,2469.3,0.40527]
[1730716047336,0.6435,2469.4,2469.2,0.40528]
[1730716047337,0.40528,2469.3,2469.2,0.40528]
[1730716048231,0.40528,2469.3,2469.1,0.6447]
[1730716048232,1.04876,2469.4,2469.3,0.40527]
[1730716048737,0.6435,2469.4,2469.1,0.6447]
[1730716049028,0.6435,2469.4,2469.3,0.40527]
[1730716049029,1.04876,2469.4,2469.3,0.40527]
[1730716049435,0.40528,2469.3,2469.2,0.40527]
[1730716049735,1.04877,2469.4,2469.3,0.40527]
[1730716050433,0.6435,2469.4,2469.3,0.40527]
[1730716050735,1.04876,2469.4,2469.3,0.40527]
[1730716050934,0.6435,2469.4,2469.3,0.40527]
[1730716051734,40.8,2469.5,2469.1,1.65795]
[1730716051934,40.8,2469.5,2469.4,0.40526]
[1730716052429,41.20524,2469.5,2469.4,0.40526]
[1730716052836,40.8,2469.5,2469.4,0.40526]
[1730716054432,41.20524,2469.5,2469.4,0.40526]
[1730716059332,40.8,2469.5,2469.4,0.40526]
[1730716059943,41.20524,2469.5,2469.4,0.40526]
[1730716061436,40.8,2469.5,2469.4,0.40526]
[1730716061934,41.20524,2469.5,2469.4,0.40526]
[1730716062642,40.8,2469.5,2469.4,0.99948751]
[1730716063434,40.8,2469.5,2469.4,0.40526]
[1730716063636,40.8,2469.5,2469.4,0.99951277]
[1730716064635,41.20524,2469.5,2469.4,0.99951277]
[1730716064834,40.8,2469.5,2469.4,0.99951277]
[1730716065436,40.8,2469.5,2469.4,1.95226643]
[1730716066332,41.20524,2469.5,2469.4,1.95226643]
[1730716066732,40.8,2469.5,2469.4,1.95226643]
[1730716067137,40.8,2469.5,2469.4,0.40526]
[1730716067341,40.8,2469.5,2469.4,1.9536177]
[1730716068445,41.20524,2469.5,2469.4,1.9536177]
[1730716070545,41.20524,2469.5,2469.4,1.00174089]
[1730716070844,41.20524,2469.5,2469.4,1.95611032]
[1730716071241,41.20524,2469.5,2469.4,1.55085032]
[1730716071547,41.20524,2469.5,2469.4,1.95611032]
[1730716071840,41.20524,2469.5,2469.4,1.55085032]
[1730716072050,45.25484,2469.5,2469.4,0.59648089]
[1730716072236,0.40529,2469.2,2469.1,0.4053]
[1730716072443,0.40529,2469.2,2469.1,1.95676682]
[1730716074148,0.40529,2469.2,2469.1,1.95661247]
[1730716076847,0.6025,2469.3,2469.1,1.55131247]
[1730716077148,1.00779,2469.3,2469.2,0.59665864]
[1730716077653,1.00779,2469.3,2469.2,1.00194864]
[1730716078047,1.00779,2469.3,2469.2,0.59665864]
[1730716078443,1.00779,2469.3,2469.2,1.55161274]
[1730716078646,1.00779,2469.3,2469.2,1.00194864]
[1730716078948,1.00779,2469.3,2469.2,0.59665864]
[1730716079149,1.00779,2469.3,2469.2,1.95688632]
[1730716079546,1.00779,2469.3,2469.2,1.55159632]
[1730716080051,1.00779,2469.3,2469.2,0.59665864]
[1730716080255,1.00779,2469.3,2469.2,1.00194864]
[1730716080447,1.00779,2469.3,2469.2,0.59665864]
[1730716080749,1.00777,2469.3,2469.2,1.55223198]
[1730716080945,1.00777,2469.3,2469.2,0.5970123]
[1730716081555,1.00777,2469.3,2469.2,1.0023023]
[1730716082347,1.00777,2469.3,2469.2,1.9578102]
[1730716082554,1.00777,2469.3,2469.2,1.95781573]
[1730716082752,1.00777,2469.3,2469.2,1.95777928]
[1730716083357,1.00777,2469.3,2469.2,0.40529]
[1730716083547,1.00777,2469.3,2469.2,1.95795821]
[1730716086860,1.00777,2469.3,2469.2,0.59718008]
[1730716087258,5.05737,2469.3,2469.2,0.59718008]
[1730716087562,1.00777,2469.3,2469.2,0.59718008]
[1730716088558,5.05737,2469.3,2469.2,0.59718008]
[1730716088753,4.6521,2469.3,2469.0,0.40531]
[1730716089064,1.86502665,2469.1,2469.0,0.40531]
[1730716089264,1.86502665,2469.1,2469.0,1.00273684]
[1730716089769,3.2078,2469.2,2469.1,0.4053]
[1730716090067,3.2078,2469.2,2469.1,1.95832424]
[1730716090260,3.2078,2469.2,2469.1,0.4053]
[1730716090457,3.2078,2469.2,2469.1,1.95823541]
[1730716091662,0.40528,2469.3,2469.2,0.40529]
[1730716091961,5.90752665,2469.5,2469.4,0.40526]
[1730716091962,3.61305,2469.5,2469.4,0.40526]
[1730716092159,3.61305,2469.5,2469.4,1.00254285]
[1730716092355,5.07277665,2469.5,2469.4,0.59728285]
[1730716092566,0.4053,2469.1,2469.0,1.45328594]
[1730716092764,0.4053,2469.1,2469.0,2.55627386]
[1730716092967,0.4053,2469.1,2469.0,0.95597949]
[1730716093170,0.40532,2469.0,2468.9,3.2078]
[1730716093362,0.40532,2469.0,2468.9,4.56228394]
[1730716094059,0.40532,2469.0,2468.9,3.61314]
[1730716094257,0.40532,2469.0,2468.9,4.56209238]
[1730716095263,0.40532,2469.0,2468.9,3.61314]
[1730716096467,0.40532,2469.0,2468.9,4.56175373]
[1730716096864,0.40532,2469.0,2468.9,3.61314]
[1730716097165,0.40532,2469.0,2468.9,4.5618393]
[1730716097363,0.40532,2469.0,2468.9,3.2078]
[1730716097571,0.40532,2469.0,2468.9,3.61314]
[1730716098772,0.40532,2469.0,2468.9,0.40534]
[1730716099774,0.40532,2469.0,2468.9,1.35389618]
[1730716101873,0.40532,2469.0,2468.9,0.40534]
[1730716102667,2.27433,2469.2,2468.7,3.2078]
[1730716102668,1.0133,2469.1,2468.7,3.2078]
[1730716102874,0.40537,2468.8,2468.7,0.40536]
[1730716103670,0.98667,2468.8,2468.7,0.40536]
[1730716104466,1.0133,2469.1,2468.5,2.92152]
[1730716104671,0.40534,2469.0,2468.9,0.40533]
[1730716104868,0.5813,2469.1,2469.0,0.40532]
[1730716105073,0.5813,2469.1,2469.0,0.99810449]
[1730716105472,0.9866,2469.1,2469.0,0.99810449]
[1730716106784,0.5813,2469.1,2469.0,0.99810449]
[1730716107378,0.9866,2469.1,2469.0,0.99810449]
[1730716107781,0.9866,2469.1,2469.0,0.99806439]
[1730716111982,0.9866,2469.1,2469.0,0.59274439]
[1730716112281,0.9866,2469.1,2469.0,0.99806439]
[1730716118085,0.9866,2469.1,2469.0,1.94817362]
[1730716118290,0.9866,2469.1,2469.0,0.99872524]
[1730716118685,0.9866,2469.1,2469.0,0.59340524]
[1730716118893,0.9866,2469.1,2469.0,0.99872524]
[1730716119288,0.9866,2469.1,2469.0,1.94825678]
[1730716120293,0.9866,2469.1,2469.0,0.99872524]
[1730716120502,0.9866,2469.1,2469.0,1.9483897]
[1730716121793,0.9866,2469.1,2469.0,0.40532]
[1730716123396,0.9866,2469.1,2469.0,0.9497132]
[1730716123600,0.9866,2469.1,2469.0,1.94860395]
[1730716124195,0.9866,2469.1,2469.0,0.99889075]
[1730716124384,0.9866,2469.1,2469.0,0.40532]
[1730716126297,0.9866,2469.1,2469.0,1.35517955]
[1730716126686,0.9866,2469.1,2469.0,1.94884177]
[1730716127296,0.4053,2469.2,2469.1,0.40529]
[1730716127497,0.4053,2469.2,2469.1,0.99895222]
[1730716128493,3.828,2469.3,2469.2,0.40529]
[1730716128494,4.23328,2469.3,2469.2,0.40529]
[1730716128694,4.23328,2469.3,2469.2,1.94867506]
[1730716129490,5.69324958,2469.3,2469.2,0.59366222]
[1730716129897,0.40532,2469.0,2468.9,0.98593]
[1730716130098,0.40532,2469.0,2468.9,2.5293445]
[1730716130487,0.40532,2469.0,2468.9,2.5293545]
[1730716131289,0.40532,2469.0,2468.9,3.71660323]
[1730716132296,0.40532,2469.0,2468.9,3.31126323]
[1730716132499,0.40532,2469.0,2468.9,2.73066323]
[1730716132702,0.40532,2469.0,2468.9,2.73088564]
[1730716133291,1.86528958,2469.0,2468.9,1.5434145]
[1730716133594,0.40535,2468.8,2468.7,3.17451892]
[1730716133796,0.40535,2468.8,2468.7,5.2802966]
[1730716134106,0.40535,2468.8,2468.7,5.28033933]
[1730716134398,0.40535,2468.8,2468.7,1.54408788]
[1730716134598,1.65465,2468.8,2468.7,1.54408788]
[1730716136401,1.65465,2468.8,2468.7,1.94945788]
[1730716136801,1.65465,2468.8,2468.7,1.54408788]
[1730716136995,1.65465,2468.8,2468.6,0.40538]
[1730716136996,0.40537,2468.7,2468.6,0.40538]
[1730716137192,0.40537,2468.7,2468.6,3.13644076]
[1730716137396,0.40537,2468.7,2468.6,3.13666185]
[1730716140501,0.40536,2468.8,2468.7,0.40537]
[1730716140701,0.40536,2468.8,2468.7,2.548838]
[1730716141200,3.8252,2468.9,2468.7,2.143468]
[1730716141396,3.2078,2468.9,2468.8,2.545518]
[1730716141702,3.2078,2468.9,2468.8,3.122018]
[1730716141891,3.61314,2468.9,2468.8,3.122018]
[1730716142096,3.2078,2468.9,2468.8,3.122018]
[1730716142296,3.61314,2468.9,2468.8,3.122018]
[1730716143101,3.61314,2468.9,2468.8,3.12186348]
[1730716145898,3.2078,2468.9,2468.8,3.12186348]
[1730716146103,3.61314,2468.9,2468.8,3.12186348]
[1730716146499,1.45996958,2469.1,2468.9,0.40532]
[1730716146500,0.40534,2469.0,2468.9,0.40532]
[1730716146697,0.40534,2469.0,2468.9,1.94893348]
[1730716149910,0.40534,2469.0,2468.9,0.40532]
[1730716150212,0.40534,2469.0,2468.9,1.94912145]
[1730716150404,1.86530958,2469.0,2468.9,1.54380145]
[1730716150604,1.86530958,2469.0,2468.9,0.59376979]
[1730716151813,1.86530958,2469.0,2468.9,1.94921175]
[1730716153412,1.86530958,2469.0,2468.9,1.9494059]
[1730716154512,0.40534,2469.0,2468.9,1.9494059]
[1730716156805,0.40534,2469.0,2468.9,0.40534]
[1730716157012,0.40534,2469.0,2468.9,1.94962278]
[1730716161222,0.40534,2469.0,2468.9,1.54428278]
[1730716162316,0.40534,2469.0,2468.9,1.94962278]
[1730716162526,0.40534,2469.0,2468.9,1.54428278]
[1730716163408,0.40534,2469.0,2468.9,0.59395491]
[1730716163626,0.40534,2469.0,2468.9,1.54367804]
[1730716163814,0.40534,2469.0,2468.9,1.54371197]
[1730716164020,3.2078,2469.1,2468.7,0.5997]
[1730716164222,0.40535,2468.9,2468.8,1.35505064]
[1730716164519,0.40535,2468.9,2468.8,1.94862604]
[1730716167415,1.00105,2468.9,2468.8,1.94862604]
[1730716167723,1.00105,2468.9,2468.8,0.40533]
[1730716168022,1.00105,2468.9,2468.8,2.53488546]
[1730716169617,1.00105,2468.9,2468.8,2.53491244]
[1730716171325,1.00105,2468.9,2468.8,1.00013]
[1730716171529,1.00105,2468.9,2468.8,2.53493965]
[1730716174121,2.0136467,2468.9,2468.8,2.53493965]
[1730716175132,2.0136467,2468.9,2468.8,2.53706182]
[1730716176325,2.0136467,2468.9,2468.8,3.71961699]
[1730716178226,2.0136467,2468.9,2468.8,3.12481699]
[1730716178428,3.1747467,2468.9,2468.8,0.40533]
[1730716178635,3.1747467,2468.9,2468.8,3.12648005]
[1730716178928,3.1747467,2468.9,2468.8,3.12661039]
[1730716180541,3.1747467,2468.9,2468.8,2.72128039]
[1730716180733,3.1747467,2468.9,2468.8,3.12663039]
[1730716181236,3.1747467,2468.9,2468.8,1.538115]
[1730716185835,3.1747367,2468.9,2468.8,1.5383682]
[1730716186730,6.3825367,2468.9,2468.8,1.5383682]
[1730716188044,5.9771967,2468.9,2468.5,2.85205776]
[1730716188236,0.40539,2468.7,2468.6,0.40537]
[1730716189829,0.40539,2468.7,2468.6,3.12702969]
[1730716190239,0.40539,2468.7,2468.6,0.40537]
[1730716190925,0.40539,2468.7,2468.6,3.12704779]
[1730716191132,0.40539,2468.7,2468.6,1.58870797]
[1730716191329,0.40539,2468.7,2468.6,2.77204576]
[1730716191531,0.40539,2468.7,2468.6,3.31334599]
[1730716191732,0.40539,2468.7,2468.6,2.1300082]
[1730716191935,0.40539,2468.7,2468.6,2.5353982]
[1730716192134,0.40539,2468.7,2468.6,2.1300082]
[1730716192935,0.40539,2468.7,2468.6,2.12986049]
[1730716193735,0.40539,2468.7,2468.6,2.53525049]
[1730716193935,0.40539,2468.7,2468.6,3.32271537]
[1730716194137,0.40539,2468.7,2468.6,2.53525049]
[1730716194336,0.40539,2468.7,2468.6,2.12986049]
[1730716194841,1.86535958,2468.7,2468.6,2.12986049]
[1730716195229,1.86535958,2468.7,2468.6,1.18328116]
[1730716196336,1.86535958,2468.7,2468.6,0.59166908]
[1730716196643,1.86535958,2468.7,2468.6,1.18800969]
[1730716197236,1.86535958,2468.7,2468.6,0.59166908]
[1730716197541,1.86535958,2468.7,2468.6,1.187895]
[1730716198234,1.86535958,2468.7,2468.6,0.59166908]
[1730716198440,5.07315958,2468.7,2468.6,0.59166908]
[1730716200341,1.86535958,2468.7,2468.6,0.59166908]
[1730716200646,3.61319,2468.7,2468.6,0.59166908]
[1730716200847,3.61319,2468.7,2468.6,1.1886612]
[1730716201248,0.40542,2468.4,2468.3,0.98032]
[1730716201548,0.40542,2468.4,2468.3,2.53268033]
[1730716202445,0.40542,2468.4,2468.3,0.98032]
[1730716202648,0.40542,2468.4,2468.3,2.53264123]
[1730716204353,5.07318958,2468.4,2468.3,0.59704663]
[1730716204553,9.12438958,2468.4,2468.3,0.59704663]
[1730716204755,0.40547,2468.1,2468.0,1.52676]
[1730716204949,0.40547,2468.1,2468.0,3.07952565]
[1730716205853,0.40547,2468.1,2468.0,1.52676]
[1730716206064,0.40547,2468.1,2468.0,3.08135972]
[1730716206561,0.40547,2468.2,2468.1,0.40545]
[1730716206764,0.40545,2468.3,2468.2,0.40544]
[1730716206954,0.40545,2468.3,2468.2,1.00336297]
[1730716207456,3.2078,2468.4,2468.3,0.40544]
[1730716207652,0.40539,2468.7,2468.6,0.40537]
[1730716207856,0.96177,2468.8,2468.7,0.40537]
[1730716208048,0.40539,2468.7,2468.6,0.40537]
[1730716208251,0.40539,2468.7,2468.6,1.00265248]